[Event "Turkish Youth Teams U18 2024"]
[Site "Karaman"]
[Date "2024.04.22"]
[Round "4"]
[White "Engel, Ecrin Tuana"]
[Black "Nurdogan, Ilgin Destina"]
[Result "0-1"]
[ECO "B23"]
[WhiteElo "1619"]
[BlackElo "1633"]
[Annotator "NA RC COMBH"]
[PlyCount "72"]
[EventDate "2024.04.21"]
[EventType "team-tourn"]
[EventCountry "TUR"]
[SourceTitle "playchess.com"]
[Source "ChessBase"]
[SourceQuality "1"]
[TimeControl "5400+30"]

1. e4 {[%emt 0:01:00]} c5 {[%emt 0:01:00]} 2. Nc3 {[%emt 0:00:30]} Nc6 {[%emt 0:00:30]} 3. f4 {[%emt 0:00:00]} d6 {[%emt 0:00:00]} 4. Nf3 {[%emt 0:00:00]} g6 {[%emt 0:02:00]} 5. Bb5 {[%emt 0:00:00]} Bd7 {[%emt 0:03:30]} 6. a4 {[%emt 0:00:00]} Nd4 {[%emt 0:04:30]} 7. d3 {[%emt 0:00:30]} Bg7 {[%emt 0:00:30]} 8. Bxd7+ {[%emt 0:03:30]} Qxd7 {[%emt 0:00:30]} 9. O-O {[%emt 0:00:00]} Nh6 {[%emt 0:03:30]} 10. Ne2 {[%emt 0:03:00]} O-O {[%emt 0:04:30]} 11. c3 {[%emt 0:00:30]} Nxf3+ {[%emt 0:00:30]} 12. Rxf3 {[%emt 0:00:30]} d5 {[%emt 0:07:30]} 13. e5 {[%emt 0:21:30]} d4 {[%emt 0:00:30]} 14. cxd4 {[%emt 0:00:30]} cxd4 {[%emt 0:00:30]} 15. Ng3 {[%emt 0:00:30]} Nf5 {[%emt 0:00:30]} 16. Nxf5 {[%emt 0:00:30]} Qxf5 {[%emt 0:00:30]} 17. Qb3 {[%emt 0:00:30]} Qd7 {[%emt 0:00:30]} 18. Bd2 {[%emt 0:00:30]} Rac8 {[%emt 0:00:30]} 19. Re1 {[%emt 0:00:30]} Rc6 {[%emt 0:01:30]} 20. Rf2 {[%emt 0:01:30]} Rfc8 {[%emt 0:00:30]} 21. Rfe2 {[%emt 0:00:30]} e6 {[%emt 0:00:30]} 22. a5 {[%emt 0:00:30]} Bf8 {[%emt 0:00:30]} 23. Bb4 {[%emt 0:00:30]} Bxb4 {[%emt 0:00:30]} 24. Qxb4 {[%emt 0:00:30]} Rc2 {[%emt 0:00:30]} 25. Qb3 {[%emt 0:00:30]} Rxe2 {[%emt 0:00:30]} 26. Rxe2 {[%emt 0:00:30]} Rc1+ {[%emt 0:00:30]} 27. Kf2 {[%emt 0:00:30]} Qc6 {[%emt 0:00:30]} 28. Qb4 {[%emt 0:00:30]} Qd5 {[%emt 0:00:30]} 29. Re4 {[%emt 0:00:30]} Rc2+ {[%emt 0:00:30]} 30. Kg3 {[%emt 0:42:30]} Kg7 {[%emt 0:51:29]} 31. h3 {[%emt 0:00:30]} Qa2 {[%emt 0:00:30]} 32. Qxd4 {[%emt 0:00:30]} Rxb2 {[%emt 0:03:16]} 33. Qxa7 {[%emt 0:20:29]} Rxg2+ {[%emt 0:00:30]} 34. Kh4 {[%emt 0:02:50]} Qd5 {[%emt 0:01:16]} 35. Qd4 {[%emt 0:00:19]} Qxa5 {[%emt 0:00:26]} 36. Qb4 {[%emt 0:00:48]} Qd8+ {[%emt 0:00:04]} 0-1

[Event "Turkish Youth Teams U18 2024"]
[Site "Karaman"]
[Date "2024.04.22"]
[Round "4"]
[White "Cetinavci, Irmak"]
[Black "Ozgor, Ezel"]
[Result "0-1"]
[ECO "A09"]
[WhiteElo "1607"]
[BlackElo "1741"]
[Annotator "NA RC COMBH"]
[PlyCount "90"]
[EventDate "2024.04.21"]
[EventType "team-tourn"]
[EventCountry "TUR"]
[SourceTitle "playchess.com"]
[Source "ChessBase"]
[SourceQuality "1"]
[TimeControl "5400+30"]

1. Nf3 d5 2. g3 Nf6 3. Bg2 c5 4. d3 Nc6 5. O-O e5 6. c4 d4 7. Nbd2 h6 8. b3 g5 9. Bb2 Bf5 10. a3 a5 11. Qc2 Qd7 12. Rfd1 Be7 13. Ne4 Nh5 14. Qd2 Rg8 15. Ne1 Be6 16. f3 f5 17. Nf2 Nf6 18. Nc2 h5 19. b4 f4 20. bxc5 Bxc5 21. Rf1 O-O-O 22. Rab1 Qg7 23. Qe1 Bd7 24. Ba1 g4 25. Ne4 Nxe4 26. fxe4 Rdf8 27. Rb3 Rf6 28. Rb1 Rgf8 29. Qd2 f3 30. Bh1 f2+ 31. Kg2 Qh7 32. h4 gxh3+ 33. Kh2 h4 34. gxh4 Qxh4 35. Bf3 Rxf3 36. exf3 Rxf3 37. Ne1 Qg3+ 38. Kh1 fxe1=Q 39. Rbxe1 Rxd3 40. Qc2 Bg4 41. Bb2 Bf3+ 42. Rxf3 Qxf3+ 43. Kg1 Qg3+ 44. Kf1 Rf3+ 45. Ke2 Rf2+ 0-1

[Event "Turkish Youth Teams U18 2024"]
[Site "Karaman"]
[Date "2024.04.22"]
[Round "4"]
[White "Donmez, Elif"]
[Black "Cetinavci, Duru"]
[Result "1/2-1/2"]
[ECO "B43"]
[WhiteElo "1506"]
[BlackElo "1449"]
[Annotator "NA RC COMBH"]
[PlyCount "72"]
[EventDate "2024.04.21"]
[EventType "team-tourn"]
[EventCountry "TUR"]
[SourceTitle "playchess.com"]
[Source "ChessBase"]
[SourceQuality "1"]
[TimeControl "5400+30"]

1. e4 {[%emt 0:01:00]} c5 {[%emt 0:01:00]} 2. Nf3 {[%emt 0:00:30]} e6 {[%emt 0:00:30]} 3. d4 {[%emt 0:00:00]} cxd4 {[%emt 0:00:30]} 4. Nxd4 {[%emt 0:00:00]} a6 {[%emt 0:00:00]} 5. Nc3 {[%emt 0:00:30]} Qc7 {[%emt 0:00:00]} 6. Be2 {[%emt 0:01:30]} Nf6 {[%emt 0:00:30]} 7. f3 {[%emt 0:01:30]} Bc5 {[%emt 0:02:30]} 8. Be3 {[%emt 0:01:30]} d6 {[%emt 0:03:30]} 9. Qd2 Bb4 {[%emt 0:05:30]} 10. Nb3 {[%emt 0:04:00]} d5 {[%emt 0:05:30]} 11. Bg5 {[%emt 0:25:30]} Nbd7 {[%emt 0:15:30]} 12. Qd4 {[%emt 0:13:30]} Bxc3+ {[%emt 0:11:30]} 13. bxc3 {[%emt 0:00:30]} dxe4 {[%emt 0:03:30]} 14. fxe4 {[%emt 0:01:30]} O-O {[%emt 0:03:30]} 15. g4 {[%emt 0:08:30]} b5 {[%emt 0:05:30]} 16. h4 {[%emt 0:01:30]} Nxe4 {[%emt 0:12:30]} 17. c4 {[%emt 0:21:04]} Qg3+ {[%emt 0:03:30]} 18. Kf1 {[%emt 0:00:58]} Bb7 {[%emt 0:10:23]} 19. Rg1 {[%emt 0:10:17]} e5 {[%emt 0:06:21]} 20. Qe3 {[%emt 0:01:16]} Qxe3 {[%emt 0:04:20]} 21. Bxe3 {[%emt 0:00:04]} bxc4 {[%emt 0:00:19]} 22. Bxc4 {[%emt 0:00:38]} Rac8 {[%emt 0:01:03]} 23. Bd3 {[%emt 0:00:30]} Nd6 {[%emt 0:00:30]} 24. Rd1 {[%emt 0:00:33]} Nf6 {[%emt 0:01:54]} 25. Bxh7+ {[%emt 0:03:40]} Kxh7 {[%emt 0:00:42]} 26. Rxd6 {[%emt 0:00:20]} Rxc2 {[%emt 0:00:40]} 27. Rd2 {[%emt 0:00:41]} Rxd2 {[%emt 0:00:18]} 28. Nxd2 {[%emt 0:00:16]} Ne4 {[%emt 0:00:40]} 29. Nxe4 {[%emt 0:00:53]} Bxe4 {[%emt 0:00:04]} 30. Ke2 {[%emt 0:00:16]} Rc8 {[%emt 0:00:33]} 31. Rc1 {[%emt 0:01:14]} Rxc1 {[%emt 0:00:30]} 32. Bxc1 {[%emt 0:00:30]} Kg6 {[%emt 0:00:30]} 33. Bb2 {[%emt 0:00:30]} Kf6 {[%emt 0:00:30]} 34. Ke3 {[%emt 0:00:30]} Bd5 {[%emt 0:00:52]} 35. a3 {[%emt 0:00:00]} Ke6 {[%emt 0:00:43]} 36. Bc3 {[%emt 0:00:36]} Bc6 {[%emt 0:00:51]} 1/2-1/2

[Event "Turkish Youth Teams U18 2024"]
[Site "Karaman"]
[Date "2024.04.22"]
[Round "4"]
[White "Kilic, Melis"]
[Black "Buyuk, Elvin Esma"]
[Result "0-1"]
[ECO "D01"]
[WhiteElo "1455"]
[BlackElo "1708"]
[Annotator "NA RC COMBH"]
[PlyCount "138"]
[EventDate "2024.04.21"]
[EventType "team-tourn"]
[EventCountry "TUR"]
[SourceTitle "playchess.com"]
[Source "ChessBase"]
[SourceQuality "1"]
[TimeControl "5400+30"]

1. d4 {[%emt 0:03:00]} d5 {[%emt 0:01:00]} 2. Nc3 {[%emt 0:00:30]} Nf6 {[%emt 0:01:30]} 3. Bg5 {[%emt 0:00:30]} Nbd7 {[%emt 0:02:30]} 4. f3 {[%emt 0:02:30]} h6 {[%emt 0:04:30]} 5. Bxf6 {[%emt 0:04:30]} Nxf6 {[%emt 0:01:30]} 6. e4 {[%emt 0:00:30]} e6 {[%emt 0:03:30]} 7. exd5 {[%emt 0:06:30]} Nxd5 {[%emt 0:03:30]} 8. Qd2 {[%emt 0:20:30]} Be7 {[%emt 0:11:30]} 9. Nh3 {[%emt 0:08:30]} a6 {[%emt 0:11:30]} 10. Nxd5 {[%emt 0:09:30]} Qxd5 {[%emt 0:03:30]} 11. Nf4 {[%emt 0:03:30]} Qd8 {[%emt 0:05:30]} 12. O-O-O {[%emt 0:09:30]} b5 {[%emt 0:09:30]} 13. Qe3 {[%emt 0:03:30]} c6 {[%emt 0:06:30]} 14. Bd3 {[%emt 0:04:30]} Qc7 {[%emt 0:07:30]} 15. h4 {[%emt 0:05:19]} Bb7 {[%emt 0:05:36]} 16. Kb1 {[%emt 0:04:03]} O-O-O {[%emt 0:05:37]} 17. Be4 {[%emt 0:04:08]} Bd6 {[%emt 0:03:34]} 18. Ne2 {[%emt 0:03:17]} Rhe8 {[%emt 0:01:32]} 19. c3 {[%emt 0:00:46]} f5 {[%emt 0:05:56]} 20. Bc2 {[%emt 0:00:57]} f4 {[%emt 0:00:30]} 21. Qd2 {[%emt 0:02:00]} e5 {[%emt 0:01:37]} 22. Bg6 {[%emt 0:00:53]} Rf8 {[%emt 0:00:30]} 23. Qc2 {[%emt 0:00:30]} Kb8 {[%emt 0:00:30]} 24. Nc1 {[%emt 0:00:42]} exd4 {[%emt 0:02:00]} 25. cxd4 {[%emt 0:01:02]} c5 {[%emt 0:00:43]} 26. dxc5 {[%emt 0:00:46]} Qxc5 {[%emt 0:00:02]} 27. Nb3 {[%emt 0:01:04]} Qxc2+ {[%emt 0:00:52]} 28. Bxc2 {[%emt 0:00:07]} Rfe8 {[%emt 0:00:25]} 29. Rhe1 {[%emt 0:00:26]} Rxe1 {[%emt 0:01:09]} 30. Rxe1 {[%emt 0:00:30]} Bb4 {[%emt 0:00:00]} 31. Re6 {[%emt 0:00:38]} Rd6 {[%emt 0:00:13]} 32. Re8+ {[%emt 0:00:43]} Kc7 {[%emt 0:00:32]} 33. Rg8 {[%emt 0:00:36]} Rd7 {[%emt 0:00:30]} 34. Bf5 {[%emt 0:00:30]} Re7 {[%emt 0:00:30]} 35. Bd3 {[%emt 0:00:30]} Bd5 {[%emt 0:00:30]} 36. Rh8 {[%emt 0:00:37]} Re5 {[%emt 0:01:08]} 37. Rh7 {[%emt 0:00:48]} Re7 {[%emt 0:00:07]} 38. Kc2 {[%emt 0:00:09]} Be1 {[%emt 0:00:48]} 39. h5 {[%emt 0:00:26]} Bh4 {[%emt 0:00:05]} 40. Nc5 {[%emt 0:00:43]} Kb6 {[%emt 0:00:21]} 41. Ne4 {[%emt 0:00:27]} Rc7+ {[%emt 0:00:52]} 42. Kd2 {[%emt 0:00:38]} Bxa2 {[%emt 0:00:36]} 43. Ke2 {[%emt 0:00:37]} Bd5 {[%emt 0:00:30]} 44. Nd6 {[%emt 0:00:30]} Bf6 {[%emt 0:00:51]} 45. Ne8 {[%emt 0:00:54]} Re7+ {[%emt 0:00:30]} 46. Kd2 {[%emt 0:00:30]} Rxe8 {[%emt 0:00:30]} 47. Bg6 {[%emt 0:00:30]} Rd8 {[%emt 0:00:00]} 48. Kc2 {[%emt 0:00:00]} Bg8 {[%emt 0:00:00]} 49. Bf5 {[%emt 0:00:27]} Bxh7 {[%emt 0:00:00]} 50. Bxh7 {[%emt 0:00:00]} Rd5 {[%emt 0:00:02]} 51. Be4 {[%emt 0:00:15]} Rxh5 {[%emt 0:00:00]} 52. b3 {[%emt 0:00:23]} Rh2 {[%emt 0:00:09]} 53. Kd3 {[%emt 0:00:30]} Rxg2 {[%emt 0:00:30]} 54. Bf5 {[%emt 0:00:30]} h5 {[%emt 0:00:00]} 55. Ke4 {[%emt 0:00:00]} g5 {[%emt 0:00:00]} 56. Kd5 {[%emt 0:00:00]} Re2 {[%emt 0:00:11]} 57. Kd6 {[%emt 0:00:00]} Re3 {[%emt 0:00:00]} 58. Be4 {[%emt 0:00:00]} h4 {[%emt 0:00:28]} 59. Bf5 {[%emt 0:00:00]} Rxf3 {[%emt 0:00:30]} 60. Bg4 {[%emt 0:00:00]} Rxb3 {[%emt 0:00:00]} 61. Bf5 {[%emt 0:00:00]} f3 {[%emt 0:00:00]} 62. Bg4 {[%emt 0:00:00]} f2 {[%emt 0:00:23]} 63. Be2 {[%emt 0:00:00]} h3 {[%emt 0:00:00]} 64. Bf1 {[%emt 0:00:00]} h2 {[%emt 0:00:21]} 65. Bg2 {[%emt 0:00:15]} h1=Q {[%emt 0:00:30]} 66. Bxh1 {[%emt 0:00:30]} f1=Q {[%emt 0:00:30]} 67. Bd5 {[%emt 0:00:00]} Qf4+ {[%emt 0:00:00]} 68. Kd7 {[%emt 0:00:00]} Qc7+ {[%emt 0:00:00]} 69. Ke8 {[%emt 0:00:00]} Qe7# {[%emt 0:00:00]} 0-1

[Event "Turkish Youth Teams U18 2024"]
[Site "Karaman"]
[Date "2024.04.23"]
[Round "5"]
[White "Durak, Can"]
[Black "Tarhan, Adar"]
[Result "0-1"]
[ECO "C47"]
[WhiteElo "2446"]
[BlackElo "2446"]
[Annotator "TA"]
[PlyCount "24"]
[EventDate "2024.04.21"]
[EventType "team-tourn"]
[EventCountry "TUR"]
[SourceTitle "playchess.com"]
[Source "ChessBase"]
[SourceQuality "1"]
[TimeControl "5400+30"]

{[%evp 13,24,0,6,0,16,12,8,10,15,-77,-78,-364,-357]} 1. e4 {[%emt 0:01:00]} Nc6 {[%emt 0:07:00]} 2. Nf3 {[%emt 0:00:30]} e5 {[%emt 0:02:30]} 3. Nc3 {[%emt 0:00:00]} Nf6 {[%emt 0:00:30]} 4. d4 {[%emt 0:00:00]} exd4 {[%emt 0:02:30]} 5. Nxd4 {[%emt 0:00:30]} Bb4 {[%emt 0:15:30]} 6. Nxc6 {[%emt 0:00:30]} bxc6 {[%emt 0:03:30]} 7. Bd3 {[%emt 0:00:30]} d5 {[%emt 0:00:00]} 8. Bd2 {[%emt 0:01:30]} Bg4 {[%emt 0:02:00]} 9. Qc1 {[%emt 0:01:30]} O-O {[%emt 0:01:30]} 10. O-O {[%emt 0:01:30]} Re8 {[%emt 0:00:30]} 11. Re1 {[%emt 0:01:30] [#]} (11. Nxd5 $11 {keeps the balance.} Nxd5 (11... cxd5 12. Bxb4 dxe4 13. Bb5 $14) 12. exd5 Bxd2 13. Qxd2) 11... dxe4 $1 $17 {[%emt 0:00:30]} 12. Nxe4 {[%emt 0:02:30][%mdl 8192] [#]} (12. Bc4 $17 {might work better.}) 12... Rxe4 $1 {[%emt 0:00:30][%mdl 512] White got outplayed after the opening.   Weighted Error Value: White=0.91/Black=0.03 (flawless) .  Loses game:     	White=1     	---        Mistake:       	White=1     	---        OK:         	White=2     	Black=1      Strong:       	---       	Black=1      Brilliant:      	---       	Black=1} 0-1

[Event "Turkish Youth Teams U18 2024"]
[Site "Karaman"]
[Date "2024.04.23"]
[Round "5"]
[White "Camlar, Arda"]
[Black "Taspinar, Yanki"]
[Result "1/2-1/2"]
[ECO "C47"]
[WhiteElo "2389"]
[BlackElo "2298"]
[Annotator "TA"]
[PlyCount "63"]
[EventDate "2024.04.21"]
[EventType "team-tourn"]
[EventCountry "TUR"]
[SourceTitle "playchess.com"]
[Source "ChessBase"]
[SourceQuality "1"]
[TimeControl "5400+30"]

{[%evp 9,63,0,0,0,0,0,0,0,0,0,0,0,0,0,10,-11,-11,-6,0,0,-4,-8,0,-7,0,0,0,0,0,-8,0,0,0,0,0,0,0,-10,-10,-10,-10,-10,-8,-21,0,-20,-15,-17,0,-36,-33,-35,-35,-35,-35,-35]} 1. e4 {[%emt 0:01:00]} e5 {[%emt 0:01:00]} 2. Nf3 {[%emt 0:00:00]} Nc6 {[%emt 0:00:30]} 3. Nc3 {[%emt 0:00:00]} Nf6 {[%emt 0:00:30]} 4. a4 {[%emt 0:00:00]} d5 {[%emt 0:01:30]} 5. exd5 {[%emt 0:01:00]} Nxd5 {[%emt 0:00:00]} 6. Bb5 {[%emt 0:00:00]} Nxc3 {[%emt 0:00:00]} 7. bxc3 {[%emt 0:00:00]} Bd6 {[%emt 0:00:30]} 8. O-O {[%emt 0:01:30][%cal Of3e5] The position is equal.} O-O {[%emt 0:00:00]} 9. d4 {[%emt 0:00:00]} exd4 {[%emt 0:00:00]} 10. cxd4 {[%emt 0:00:00]} Bg4 {[%emt 0:00:30]} 11. c3 {[%emt 0:00:30]} Qf6 {[%emt 0:00:30]} 12. h3 {[%emt 0:02:30]} Bxf3 {[%emt 0:05:30]} 13. Qxf3 {[%emt 0:00:30]} Qxf3 {[%emt 0:00:30]} 14. gxf3 {[%emt 0:00:00]} Ne7 {[%emt 0:01:30][%cal Bc6e7,Be7g6,Bg6f4][%mdl 32]} 15. Bc4 {[%emt 0:14:00]} Ng6 {[%emt 0:13:30]} 16. Re1 {[%emt 0:02:30]} Nf4 {[%emt 0:19:30]} 17. h4 {[%emt 0:03:30]} h6 {[%emt 0:08:30]} 18. Rb1 {[%emt 0:03:30]} b6 {[%emt 0:00:30]} 19. Rb5 {[%emt 0:01:30]} g6 {[%emt 0:00:30]} 20. Re4 {[%emt 0:01:30]} a6 {[%emt 0:00:30]} 21. Rb1 {[%emt 0:03:30]} g5 {[%emt 0:01:30]} 22. Kf1 {[%emt 0:07:30]} ({Much less strong is} 22. hxg5 $6 hxg5 23. Bxf4 Bxf4 $16) 22... Kg7 {[%emt 0:01:30]} 23. hxg5 {[%emt 0:01:30]} hxg5 {[%emt 0:00:00]} 24. Bxf4 {[%emt 0:00:00]} Bxf4 {[%emt 0:00:00]} 25. Ke2 {[%emt 0:01:00]} Rh8 {[%emt 0:02:30]} 26. Bd5 {[%emt 0:02:30]} Rab8 {[%emt 0:08:30]} 27. Kd3 {[%emt 0:01:30]} Kf6 {[%emt 0:02:30]} 28. Re2 {[%emt 0:03:30]} Bd6 {[%emt 0:05:30]} 29. c4 {[%emt 0:01:30][%cal Oa4a5]} a5 {[%emt 0:03:30] Black is slightly better.} 30. Rb5 {[%emt 0:00:30]} Rbd8 {[%emt 0:00:30]} 31. Rb1 {[%emt 0:04:30]} Rh4 {[%emt 0:00:30]} 32. Re4 {[%emt 0:00:30] Weighted Error Value: White=0.05 (flawless) /Black=0.03 (flawless) .  Inaccurate:     	White=1     	---        OK:         	White=9     	Black=14} 1/2-1/2

[Event "Turkish Youth Teams U18 2024"]
[Site "Karaman"]
[Date "2024.04.23"]
[Round "5"]
[White "Ince, Taylan Ruzgar"]
[Black "Senel, Hayri Beyhun"]
[Result "1/2-1/2"]
[ECO "E06"]
[WhiteElo "2258"]
[BlackElo "1961"]
[Annotator "TA"]
[PlyCount "117"]
[EventDate "2024.04.21"]
[EventType "team-tourn"]
[EventCountry "TUR"]
[SourceTitle "playchess.com"]
[Source "ChessBase"]
[SourceQuality "1"]
[TimeControl "5400+30"]

{[%evp 9,117,20,36,30,40,22,37,13,33,25,22,12,18,33,27,28,24,18,22,28,20,25,22,0,0,4,22,25,32,30,30,15,42,0,50,52,70,0,0,0,0,0,9,10,12,6,21,0,2,2,4,0,0,0,0,0,0,0,0,0,14,12,29,30,122,61,73,60,114,110,120,0,235,0,0,0,0,0,0,0,0,0,0,0,0,0,0,0,0,0,0,0,0,0,0,0,0,0,0,-79,-79,-108,-108,-108,-108,-108,-94,-94,-94,-94]} 1. Nf3 {[%emt 0:01:00]} d5 {[%emt 0:01:00]} 2. d4 {[%emt 0:00:30]} Nf6 {[%emt 0:00:30]} 3. c4 {[%emt 0:00:30]} e6 {[%emt 0:00:30]} 4. g3 {[%emt 0:00:30]} Be7 {[%emt 0:00:30]} 5. Bg2 {[%emt 0:00:30]} Ne4 {[%emt 0:00:00]} 6. Nc3 {[%emt 0:05:30]} f5 {[%emt 0:02:00]} 7. Bf4 {[%emt 0:04:30]} c6 {[%emt 0:04:30]} 8. O-O {[%emt 0:03:30] White is slightly better.} Nd7 {[%emt 0:03:30]} 9. h4 {[%emt 0:13:30]} h6 {[%emt 0:19:30]} 10. Nxe4 {[%emt 0:10:30]} dxe4 {[%emt 0:04:30]} 11. Ne5 {[%emt 0:02:30]} Nxe5 {[%emt 0:00:30]} 12. Bxe5 {[%emt 0:00:30]} Bf6 {[%emt 0:07:30]} 13. e3 {[%emt 0:01:30]} O-O {[%emt 0:04:30]} 14. Qc2 {[%emt 0:08:30]} Bxe5 {[%emt 0:05:30]} 15. dxe5 {[%emt 0:00:30]} Qa5 {[%emt 0:00:30]} 16. Rfd1 {[%emt 0:03:30][%cal Bf1d1,Bd1d4,Bd4d6][%mdl 32]} Qxe5 {[%emt 0:02:30]} 17. c5 {[%emt 0:00:00]} b6 {[%emt 0:03:30]} 18. cxb6 {[%emt 0:01:00]} axb6 {[%emt 0:00:30]} 19. Qxc6 {[%emt 0:00:30]} Ba6 {[%emt 0:04:30][%cal Bc8a6,Ba6d3,Bd3c4,Bc4d5][%mdl 32]} 20. Rd4 {[%emt 0:03:30]} Bd3 {[%emt 0:04:30]} 21. Qd6 {[%emt 0:08:30]} (21. a4 {seems wilder.} Rac8 22. Qxb6 Rb8 23. Qd6) 21... Qxd6 {[%emt 0:01:30]} (21... Qf6 $11) 22. Rxd6 $14 {[%emt 0:00:00]} Bc4 {[%emt 0:04:30]} 23. a3 {[%emt 0:00:00]} (23. Rxb6 $14 Rxa2 24. Rxa2 Bxa2 25. f3) 23... Rab8 $11 {[%emt 0:03:30]} 24. Rc1 {[%emt 0:01:30]} Bd5 {[%emt 0:00:30]} 25. Bf1 {[%emt 0:01:30]} Rfd8 {[%emt 0:01:30]} 26. Rxd8+ {[%emt 0:00:30]} Rxd8 {[%emt 0:00:30][%mdl 4096] Endgame. KRB-KRB} 27. Rc7 {[%emt 0:03:30]} g5 {[%emt 0:02:58]} 28. Bc4 {[%emt 0:05:30]} Bxc4 {[%emt 0:01:34]} 29. Rxc4 {[%emt 0:00:30] KR-KR} Kf7 {[%emt 0:00:01]} 30. Rc7+ {[%emt 0:02:39]} Kf6 {[%emt 0:00:49]} 31. Rb7 {[%emt 0:01:49]} Rd1+ {[%emt 0:01:05]} 32. Kg2 {[%emt 0:00:30]} Rd6 {[%emt 0:00:30]} 33. a4 {[%emt 0:00:30]} Rc6 {[%emt 0:03:20]} 34. b4 {[%emt 0:01:32]} Kg6 {[%emt 0:01:54]} 35. b5 {[%emt 0:02:57]} Rd6 {[%emt 0:01:11]} 36. Rb8 {[%emt 0:01:25]} g4 {[%emt 0:05:20] [#]} (36... Kf6 $11) 37. Kf1 {[%emt 0:00:54]} (37. Ra8 $1 $16 {[%cal Ra8a6] Black must now prevent Ra6.} Kf6 38. Ra6) 37... Kf6 $14 {[%emt 0:01:38]} 38. Ke2 {[%emt 0:00:09] Dodges Rd1} Kg6 {[%emt 0:00:32]} ({Better is} 38... Ke5 $14 39. Rh8 Kf6) 39. Ra8 $16 {[%emt 0:01:06] And now Ra6 would win.} Kf6 {[%emt 0:00:59]} 40. h5 {[%emt 0:04:28]} ({White should try} 40. Ra6 $16 {Hoping for a5.} Ke5 41. a5 bxa5 42. b6 (42. Rxa5 Rd5 $11)) 40... Rd7 $2 {[%emt 0:02:44] [#]} (40... Kg5 41. Ra6 Rd3 (41... Kxh5 $2 {perishes.} 42. a5 $18) 42. Rxb6 $18) (40... Rd3 $1 $11 {and Black is okay.}) 41. Rg8 $2 {[%emt 0:01:28]} (41. Ra6 $1 $18 {[%cal Ra6b6]} Rb7 42. Kd2) 41... Ra7 {[%emt 0:00:30]} 42. Rg6+ {[%emt 0:00:09]} Ke5 $1 {[%emt 0:03:38]} 43. Rxh6 {[%emt 0:00:30]} Rxa4 {[%emt 0:00:00]} 44. Rh8 {[%emt 0:00:49]} Ra7 {[%emt 0:00:41]} 45. h6 {[%emt 0:00:57]} Rc7 {[%emt 0:00:35]} 46. Rg8 {[%emt 0:04:50]} Rh7 {[%emt 0:00:26]} 47. Rb8 {[%emt 0:01:49]} Rxh6 {[%emt 0:00:30]} 48. Rxb6 {[%emt 0:00:30]} Rh7 {[%emt 0:00:14]} 49. Rb8 {[%emt 0:00:57]} Kd5 {[%emt 0:00:10]} 50. Kd2 {[%emt 0:00:34]} Kc5 {[%emt 0:00:27]} 51. b6 {[%emt 0:00:33]} Rd7+ {[%emt 0:01:24]} 52. Kc3 {[%emt 0:00:23]} Rd3+ {[%emt 0:00:14]} 53. Kc2 {[%emt 0:00:06]} Rd6 {[%emt 0:00:09]} 54. b7 {[%emt 0:01:37]} (54. Kc3 $11 {keeps the balance.}) 54... Kb6 {[%emt 0:00:15] Black is better.} 55. Re8 {[%emt 0:00:22]} Kxb7 {[%emt 0:00:01]} 56. Rh8 {[%emt 0:00:37]} Kc6 {[%emt 0:00:12]} 57. Ra8 {[%emt 0:00:01]} Kd5 {[%emt 0:00:57]} 58. Kd2 {[%emt 0:00:30]} Ke5+ {[%emt 0:00:49]} 59. Ke2 {[%emt 0:00:04] Weighted Error Value: White=0.19 (very precise) /Black=0.15 (very precise) .  Loses game:     	---       	Black=1      Missed win:     	White=1     	---        Mistake:       	White=4     	Black=3      Inaccurate:     	White=2     	Black=1      OK:         	White=21    	Black=23     Best:        	---       	Black=3      Strong:       	---       	Black=1} 1/2-1/2